bitfinex-derivatives/quotes_BTCF0:USTF0_20240923
["timestamp","ask_amount","ask_price","bid_price","bid_amount"]
[1727063767594,0.077657,64382.0,64376.0,0.03221528]
[1727063767788,0.077662,64378.0,64376.0,0.10987828]
[1727063767990,0.077663,64377.0,64376.0,0.10987828]
[1727063768190,0.077663,64377.0,64376.0,0.03221528]
[1727063768392,0.082663,64377.0,64376.0,0.03221528]
[1727063769007,0.082663,64377.0,64376.0,0.03121528]
[1727063769195,0.082663,64377.0,64376.0,0.03221528]
[1727063771799,0.005,64377.0,64376.0,0.10987928]
[1727063772006,0.077658,64382.0,64376.0,0.71592527]
[1727063772190,0.077658,64382.0,64381.0,0.42263552]
[1727063772390,0.52292,64387.0,64383.0,0.077656]
[1727063772591,0.52292,64387.0,64383.0,0.13948593]
[1727063773194,0.077653,64386.0,64384.0,0.077654]
[1727063773393,0.077653,64386.0,64384.0,0.13948393]
[1727063774310,0.077653,64386.0,64384.0,0.077654]
[1727063774807,0.077655,64384.0,64383.0,0.001]
[1727063775404,0.077655,64384.0,64382.0,0.06182993]
[1727063776095,0.077655,64384.0,64383.0,0.001]
[1727063776399,0.077655,64384.0,64383.0,0.002]
[1727063776599,0.077655,64384.0,64383.0,0.001]
[1727063776995,0.077655,64384.0,64382.0,0.06282993]
[1727063777202,0.52292,64387.0,64382.0,0.06282993]
[1727063777203,0.52292,64387.0,64382.0,0.06382993]
[1727063777406,0.52292,64387.0,64386.0,0.438452]
[1727063777803,0.52292,64387.0,64386.0,0.74831349]
[1727063778598,0.52292,64387.0,64386.0,0.83555852]
[1727063778812,0.52292,64387.0,64386.0,1.21423349]
[1727063779105,0.52292,64387.0,64386.0,1.13691755]
[1727063779493,0.52292,64387.0,64386.0,1.73691755]
[1727063779699,0.52292,64387.0,64386.0,1.73891755]
[1727063780908,0.0042,64403.0,64399.0,0.077637]
[1727063781211,0.077631,64404.0,64400.0,0.077635]
[1727063781403,0.077631,64404.0,64399.0,0.3608]
[1727063781404,0.077625,64409.0,64401.0,0.077634]
[1727063781605,0.077627,64407.0,64401.0,0.077634]
[1727063782001,0.077627,64407.0,64402.0,0.077633]
[1727063782203,0.217,64413.0,64405.0,0.3608]
[1727063782510,0.29462,64413.0,64411.0,0.03135666]
[1727063782706,0.42462,64413.0,64411.0,0.03135666]
[1727063784204,0.42462,64413.0,64411.0,0.03235666]
[1727063785002,0.438421,64412.0,64411.0,0.03235666]
[1727063785208,0.438421,64412.0,64411.0,0.03335666]
[1727063788323,0.516042,64412.0,64411.0,0.03335666]
[1727063793715,0.438421,64412.0,64411.0,0.06346809]
[1727063794034,0.077621,64412.0,64411.0,0.06346809]
[1727063796216,0.077621,64412.0,64411.0,0.07212809]
[1727063797622,0.285242,64412.0,64411.0,0.07212809]
[1727063798007,0.362863,64412.0,64411.0,9e-08]
[1727063798915,1.428623,64412.0,64411.0,9e-08]
[1727063799518,1.428623,64412.0,64411.0,1e-08]
[1727063800308,1.428623,64412.0,64401.0,0.06051837]
[1727063800309,0.155266,64402.0,64401.0,0.03040468]
[1727063800621,0.646066,64402.0,64401.0,0.03040468]
[1727063800823,1.711906,64402.0,64401.0,0.03040468]
[1727063801508,1.711906,64402.0,64387.0,0.0036]
[1727063801509,0.07765,64388.0,64387.0,0.0036]
[1727063801713,0.077651,64387.0,64384.0,0.3608]
[1727063802118,0.077651,64387.0,64385.0,0.23230973]
[1727063802423,0.077651,64387.0,64385.0,0.26243217]
[1727063803015,0.077652,64386.0,64385.0,0.26243217]
[1727063803218,0.077652,64386.0,64385.0,0.29042161]
[1727063803521,0.077652,64386.0,64385.0,0.29942161]
[1727063803917,0.077652,64386.0,64385.0,0.30742161]
[1727063804608,0.077652,64386.0,64385.0,0.07511188]
[1727063804810,0.077652,64386.0,64385.0,0.07611188]
[1727063805516,0.077652,64386.0,64385.0,0.06811188]
[1727063805721,0.077652,64386.0,64385.0,0.07611188]
[1727063807725,0.09272821,64389.0,64385.0,0.20611188]
[1727063807921,0.02517695,64388.0,64385.0,0.28376488]
[1727063808225,0.077648,64390.0,64385.0,0.28376488]
[1727063808424,0.02517682,64389.0,64385.0,0.28376488]
[1727063809526,0.077648,64390.0,64386.0,0.16502289]
[1727063809826,0.077648,64390.0,64389.0,0.07741274]
[1727063810415,0.0036,64404.0,64389.0,0.07741274]
[1727063810629,0.7764,64405.0,64397.0,0.04644508]
[1727063811230,0.7764,64405.0,64396.0,0.06192678]
[1727063811231,0.13,64401.0,64396.0,0.06192678]
[1727063811422,0.077639,64397.0,64396.0,0.06192678]
[1727063812626,0.078639,64397.0,64396.0,0.06192678]
[1727063813219,0.078639,64397.0,64396.0,0.0919847]
[1727063814529,0.078639,64397.0,64396.0,0.03005792]
[1727063816228,0.208639,64397.0,64396.0,0.03005792]
[1727063816540,0.23381398,64397.0,64396.0,0.03005792]
[1727063817123,0.31145298,64397.0,64396.0,0.03005792]
[1727063817323,0.36615173,64397.0,64396.0,0.00935434]
[1727063821037,0.72695173,64397.0,64396.0,0.00935434]
[1727063821231,0.83540752,64397.0,64396.0,0.00935434]
[1727063821532,0.79023094,64397.0,64396.0,0.00935434]
[1727063822441,0.66023094,64397.0,64396.0,0.00935434]
[1727063822642,0.79023094,64397.0,64396.0,0.00935434]
[1727063822933,0.79023094,64397.0,64387.0,0.03160761]
[1727063822934,0.1553,64388.0,64387.0,0.03160761]
[1727063823137,0.155304,64386.0,64385.0,0.03978244]
[1727063823330,0.23459032,64386.0,64385.0,0.03978244]
[1727063823531,0.42051752,64386.0,64385.0,0.03978244]
[1727063823843,0.31224232,64386.0,64385.0,0.03978244]
[1727063824027,0.42050249,64386.0,64385.0,0.03978244]
[1727063824227,0.31224232,64386.0,64385.0,0.03978244]
[1727063824528,0.232956,64386.0,64385.0,0.04878244]
[1727063825026,0.232956,64386.0,64385.0,0.04078244]
[1727063825841,0.233956,64386.0,64385.0,0.04178244]
[1727063826033,0.233956,64386.0,64385.0,0.04078244]
[1727063826232,0.233956,64386.0,64385.0,0.04178244]
[1727063826741,0.2416338,64386.0,64385.0,1e-06]
[1727063828334,0.3716338,64386.0,64385.0,1e-06]
[1727063830345,0.363956,64386.0,64385.0,1e-06]
[1727063830734,0.233956,64386.0,64385.0,1e-06]
[1727063830936,0.363956,64386.0,64385.0,1e-06]
[1727063834150,0.286304,64386.0,64385.0,1e-06]
[1727063835548,0.078652,64386.0,64385.0,1e-06]
[1727063835740,0.078652,64386.0,64385.0,0.45063043]
[1727063837144,0.078652,64386.0,64385.0,0.45053445]
[1727063837547,0.080652,64386.0,64385.0,0.3887]
[1727063837751,0.084652,64386.0,64385.0,0.3887]
[1727063838153,0.084652,64386.0,64385.0,0.3897]
[1727063838545,0.085652,64386.0,64385.0,0.3907]
[1727063838851,0.085652,64386.0,64385.0,0.3897]
[1727063839252,0.3608,64403.0,64386.0,0.077652]
[1727063839253,0.077647,64391.0,64386.0,0.077652]
[1727063839452,0.077647,64391.0,64385.0,1.45466]
[1727063839453,0.077647,64391.0,64390.0,0.03012186]
[1727063839864,0.077647,64391.0,64390.0,0.39092186]
[1727063840045,0.09280135,64400.0,64390.0,1.45684186]
[1727063840357,0.02517438,64399.0,64390.0,0.39092186]
[1727063840545,0.02517438,64398.0,64390.0,0.39092186]
[1727063840745,0.09280135,64401.0,64390.0,0.39092186]
[1727063841551,0.02517423,64402.0,64390.0,0.39092186]
[1727063841552,0.02517423,64400.0,64390.0,0.39092186]
[1727063841759,0.02517423,64399.0,64390.0,0.39092186]
[1727063841948,0.4908,64403.0,64390.0,0.39092186]
[1727063841949,0.077642,64395.0,64390.0,0.39092186]
[1727063842142,0.077642,64395.0,64394.0,0.02946759]
[1727063844556,0.18045992,64395.0,64394.0,0.02946759]
[1727063844759,0.077652,64386.0,64385.0,0.3887]
[1727063844953,0.207652,64386.0,64385.0,0.3887]
[1727063846448,0.077652,64386.0,64385.0,0.3887]
[1727063848354,0.077652,64386.0,64385.0,0.43493916]
[1727063848563,0.077652,64386.0,64385.0,0.43593916]
[1727063848862,0.077652,64386.0,64385.0,0.3897]
[1727063849658,0.077652,64386.0,64385.0,0.39836]
[1727063850265,0.077652,64386.0,64385.0,0.39936]
[1727063851270,0.207652,64386.0,64385.0,0.05691921]
[1727063851566,0.285304,64386.0,64385.0,0.01066]
[1727063853574,0.285304,64386.0,64385.0,0.00966]
[1727063854671,0.31048678,64386.0,64385.0,0.01066]
[1727063855260,0.31048678,64386.0,64385.0,0.00966]
[1727063855459,0.23283478,64386.0,64385.0,0.01066]
[1727063855866,0.23283446,64386.0,64385.0,0.01066]
[1727063856270,0.3104866,64386.0,64385.0,0.01066]
[1727063856674,0.077661,64379.0,64378.0,0.0301302]
[1727063856867,0.207661,64379.0,64378.0,0.0301302]
[1727063859278,0.285322,64379.0,64378.0,0.0301302]
[1727063859669,0.751322,64379.0,64378.0,0.0301302]
[1727063859868,0.77650804,64379.0,64378.0,0.0301302]
[1727063860268,0.077678,64365.0,64364.0,0.0036]
[1727063860465,0.077678,64365.0,64363.0,0.03012244]
[1727063861274,0.077678,64365.0,64363.0,0.03479013]
[1727063861587,0.077678,64365.0,64364.0,0.08181131]
[1727063861776,0.516156,64365.0,64364.0,0.06623981]
[1727063862079,0.516156,64365.0,64364.0,0.01]
[1727063862276,0.708856,64365.0,64364.0,0.01]
[1727063863789,0.155358,64364.0,64363.0,0.022]
[1727063864079,0.155358,64364.0,64363.0,0.011]
[1727063864578,0.077688,64356.0,64355.0,0.03215728]
[1727063865774,0.077688,64356.0,64355.0,0.03315728]
[1727063867179,0.077688,64356.0,64355.0,0.03415728]
[1727063869971,0.155376,64356.0,64355.0,0.03415728]
[1727063871674,0.155376,64356.0,64355.0,2.8e-07]
[1727063871675,0.233064,64356.0,64355.0,2.8e-07]
[1727063871877,0.077702,64345.0,64344.0,0.03237412]
[1727063872066,0.516204,64345.0,64344.0,0.03237412]
[1727063872774,0.438502,64345.0,64344.0,0.03237412]
[1727063873271,0.438502,64345.0,64344.0,0.03737412]
[1727063874173,0.077696,64350.0,64344.0,0.03737412]
[1727063874482,0.3608,64351.0,64344.0,0.03737412]
[1727063874669,0.077697,64349.0,64344.0,0.03737412]
[1727063874868,0.077697,64349.0,64344.0,0.04237412]
[1727063875072,0.077697,64349.0,64345.0,0.1878]
[1727063876174,0.13,64349.0,64344.0,0.03937412]
[1727063876472,0.3608,64351.0,64344.0,0.03937412]
[1727063876473,0.568502,64345.0,64344.0,0.03937412]
[1727063876666,0.568502,64345.0,64344.0,0.03637412]
[1727063877565,0.568502,64345.0,64344.0,0.03237412]
[1727063878468,0.568502,64345.0,64344.0,0.03537412]
[1727063879082,0.568502,64345.0,64344.0,0.03837412]
[1727063879481,0.207702,64345.0,64344.0,0.03837412]
[1727063880179,0.077702,64345.0,64344.0,0.03837412]
[1727063880681,0.077702,64345.0,64344.0,0.0846192]
[1727063880984,0.077702,64345.0,64344.0,0.08462229]
[1727063881178,0.077702,64345.0,64344.0,0.03887412]
[1727063881675,0.3608,64351.0,64344.0,0.03887412]
[1727063881987,0.077691,64355.0,64347.0,0.40707928]
[1727063882283,0.077691,64355.0,64349.0,0.04627928]
[1727063882478,0.569287,64358.0,64350.0,0.077695]
[1727063882479,0.077688,64357.0,64350.0,0.077695]
[1727063882677,0.077688,64357.0,64351.0,0.04627928]
[1727063882878,0.077688,64357.0,64350.0,0.03013811]
[1727063882879,0.077688,64357.0,64353.0,0.077692]
[1727063883074,0.3608,64365.0,64353.0,0.3608]
[1727063883075,0.077682,64362.0,64353.0,0.3608]
[1727063883386,0.3608,64365.0,64353.0,0.3608]
[1727063883387,0.077683,64361.0,64358.0,0.04627928]
[1727063883682,0.3608,64365.0,64358.0,0.04627928]
[1727063883873,0.3608,64365.0,64363.0,0.03175599]
[1727063884068,0.0036,64376.0,64364.0,0.65628]
[1727063884274,0.077669,64372.0,64367.0,0.04631662]
[1727063884481,0.077669,64372.0,64368.0,0.04631662]
[1727063884779,0.13,64377.0,64369.0,0.04631662]
[1727063884976,0.077667,64374.0,64369.0,0.04631662]
[1727063885180,0.077667,64374.0,64370.0,0.04631662]
[1727063886689,0.20767,64371.0,64370.0,0.04631662]
[1727063887669,0.20767,64371.0,64370.0,0.04731662]
[1727063887986,0.077672,64370.0,64369.0,0.002]
[1727063888179,0.077674,64368.0,64363.0,0.03175599]
[1727063888375,0.568479,64364.0,64363.0,0.03175599]
[1727063888780,0.568479,64364.0,64356.0,0.06181131]
[1727063888781,1.0908,64364.0,64356.0,0.06181131]
[1727063889084,1.0908,64364.0,64348.0,0.02956726]
[1727063889085,0.4908,64357.0,64348.0,0.02956726]
[1727063889275,0.13,64352.0,64348.0,0.02956726]
[1727063890176,0.077696,64350.0,64348.0,0.02956726]
[1727063892279,0.078696,64350.0,64348.0,0.02956726]
[1727063892883,0.080696,64350.0,64348.0,0.02956726]
[1727063893081,0.3608,64349.0,64348.0,0.02956726]
[1727063893970,0.080696,64350.0,64348.0,0.02956726]
[1727063894174,0.003,64350.0,64348.0,0.49576726]
[1727063894374,0.003,64350.0,64349.0,0.39]
[1727063894770,0.003,64350.0,64349.0,0.8562]
[1727063895085,0.077683,64361.0,64352.0,0.077693]
[1727063895284,0.077683,64361.0,64353.0,0.4908]
[1727063896179,0.077684,64360.0,64353.0,0.4908]
[1727063896585,0.077684,64360.0,64353.0,0.3638]
[1727063897190,0.077684,64360.0,64354.0,0.077691]
[1727063897673,0.13,64366.0,64354.0,0.077691]
[1727063897879,0.13,64361.0,64354.0,0.077691]
[1727063898280,0.077689,64356.0,64353.0,0.3618]
[1727063898482,0.07769,64355.0,64353.0,0.3618]
[1727063898683,0.07769,64355.0,64353.0,0.3628]
[1727063898980,0.13,64354.0,64353.0,0.3618]
[1727063899184,0.13,64354.0,64353.0,0.001]
[1727063899491,0.077692,64353.0,64352.0,0.03013419]
[1727063899880,0.077692,64353.0,64352.0,0.03486585]
[1727063901191,0.077692,64353.0,64352.0,0.03013419]
[1727063901884,0.077692,64353.0,64352.0,0.13184015]
[1727063902189,0.080692,64353.0,64352.0,0.21748936]
[1727063902397,0.008,64353.0,64352.0,1.28396962]
[1727063902981,0.005,64353.0,64352.0,1.28396962]
[1727063903290,0.077686,64359.0,64352.0,1.20927662]
[1727063903485,0.077686,64359.0,64355.0,0.07732595]
[1727063903690,0.077682,64362.0,64358.0,0.3608]
[1727063903893,0.077682,64362.0,64361.0,0.06185762]
[1727063904190,0.077682,64362.0,64358.0,0.51581195]
[1727063904693,0.077682,64362.0,64361.0,0.03024869]
[1727063905685,0.080682,64362.0,64361.0,0.03024869]
[1727063906497,0.086682,64362.0,64361.0,0.03224869]
[1727063908095,0.086682,64362.0,64361.0,0.03124869]
[1727063908393,0.084682,64362.0,64361.0,0.03024869]
[1727063908693,0.084682,64362.0,64361.0,0.05453902]
[1727063909695,0.081682,64362.0,64361.0,0.05453902]
[1727063909894,0.084682,64362.0,64361.0,0.05453902]
[1727063910288,0.084682,64362.0,64361.0,0.03024869]
[1727063911098,0.084682,64362.0,64361.0,0.05453894]
[1727063912195,0.084682,64362.0,64361.0,0.03024869]
[1727063914198,0.082682,64362.0,64361.0,0.03024869]
[1727063914499,0.081682,64362.0,64361.0,0.03024869]
[1727063914697,0.079682,64362.0,64361.0,0.03024869]
[1727063914996,0.081682,64362.0,64361.0,0.03024869]
[1727063916092,0.081682,64362.0,64361.0,0.10757464]
[1727063916298,0.081682,64362.0,64361.0,0.19118849]
[1727063916698,0.081682,64362.0,64361.0,0.03024869]
[1727063917090,0.081682,64362.0,64361.0,0.10757464]
[1727063917296,0.081682,64362.0,64361.0,0.19117637]
[1727063917799,0.081682,64362.0,64361.0,0.10757464]
[1727063919192,0.081682,64362.0,64361.0,0.07732595]
[1727063919394,0.081682,64362.0,64361.0,0.16091148]
[1727063919590,0.081682,64362.0,64361.0,0.16091517]
[1727063919787,0.081682,64362.0,64361.0,0.07732595]
[1727063919989,0.077682,64361.0,64360.0,0.07732595]
[1727063920200,0.077682,64361.0,64360.0,0.08327355]
[1727063921006,0.078682,64361.0,64360.0,0.08327355]
[1727063921614,0.079682,64361.0,64360.0,0.08327355]
[1727063924300,0.079682,64361.0,64358.0,0.45373899]
[1727063924602,0.077684,64360.0,64359.0,0.20064695]
[1727063924804,0.431984,64360.0,64359.0,0.08341699]
[1727063925003,0.431984,64360.0,64359.0,0.07762393]
[1727063925307,0.077685,64359.0,64358.0,0.07762393]
[1727063925496,0.390385,64359.0,64358.0,0.001]
[1727063925692,0.390385,64359.0,64358.0,0.07862393]
[1727063926109,0.390385,64359.0,64358.0,0.002]
[1727063927698,0.077687,64357.0,64356.0,0.07762393]
[1727063927899,0.077687,64357.0,64356.0,0.16129566]
[1727063928505,0.077687,64357.0,64356.0,0.08367173]
[1727063928905,0.079687,64357.0,64356.0,0.08367173]
[1727063929802,0.077692,64354.0,64350.0,0.3608]
[1727063930114,0.077692,64353.0,64351.0,0.02429392]
[1727063930303,0.077692,64353.0,64352.0,0.02429392]
[1727063931117,0.002,64357.0,64352.0,0.02429392]
[1727063931412,0.1827,64359.0,64353.0,0.02429392]
[1727063931612,0.1827,64359.0,64352.0,0.002]
[1727063931815,0.1827,64359.0,64353.0,0.0242935]
[1727063932012,0.1827,64359.0,64352.0,0.002]
[1727063932210,0.07769,64355.0,64353.0,0.02429353]
[1727063932412,0.07769,64355.0,64352.0,0.002]
[1727063932413,0.077691,64354.0,64352.0,0.004]
[1727063932710,0.077691,64354.0,64353.0,0.02429353]
[1727063933016,0.0928501,64365.0,64353.0,0.62045353]
[1727063933215,0.0928501,64367.0,64358.0,0.3608]
[1727063933406,0.077684,64360.0,64359.0,0.06315693]
[1727063933606,0.077684,64360.0,64359.0,0.06315569]
[1727063934214,0.077684,64360.0,64359.0,0.02429091]
[1727063934513,0.077684,64360.0,64358.0,0.3608]
[1727063934709,0.733,64360.0,64353.0,0.06208707]
[1727063934904,0.207691,64354.0,64345.0,0.06208707]
[1727063935119,0.077692,64353.0,64346.0,0.06316669]
[1727063935403,0.077693,64352.0,64348.0,0.077697]
[1727063935712,0.077693,64352.0,64349.0,0.02429525]
[1727063935900,0.077693,64352.0,64348.0,0.077697]
[1727063936505,0.077695,64351.0,64348.0,0.077697]
[1727063937498,0.077695,64351.0,64349.0,0.02429472]
[1727063937703,0.077695,64351.0,64350.0,0.02429441]
[1727063937914,0.001,64352.0,64350.0,0.06316484]
[1727063938212,0.077689,64356.0,64353.0,0.077692]
[1727063938408,0.077689,64356.0,64354.0,0.06316484]
[1727063938607,0.077689,64356.0,64355.0,0.10689601]
[1727063938810,0.077689,64356.0,64354.0,0.09313885]
[1727063938811,0.07769,64355.0,64354.0,0.09313885]
[1727063939008,0.26229,64355.0,64354.0,0.06207718]
[1727063939919,0.26229,64355.0,64350.0,0.08159648]
[1727063939920,0.077693,64353.0,64350.0,0.08159648]
[1727063940405,0.077693,64353.0,64347.0,0.077699]
[1727063940610,0.077693,64353.0,64347.0,0.252499]
[1727063940813,0.077693,64353.0,64348.0,0.1816]
[1727063941214,0.077693,64353.0,64350.0,0.004]
[1727063941615,0.078693,64353.0,64350.0,0.004]
[1727063941905,0.001,64353.0,64350.0,0.077695]
[1727063942712,0.001,64353.0,64352.0,0.077693]
[1727063942915,0.001,64353.0,64352.0,0.12627866]
[1727063943717,0.07769,64355.0,64352.0,0.12627866]
[1727063943919,0.07769,64355.0,64352.0,0.077693]
[1727063944131,0.07769,64355.0,64353.0,0.077692]
[1727063944311,0.077684,64361.0,64353.0,0.077692]
[1727063944512,0.077685,64359.0,64353.0,0.077692]
[1727063944808,0.3608,64362.0,64358.0,0.077686]
[1727063945011,0.077679,64364.0,64361.0,0.06206677]
[1727063945614,0.077679,64364.0,64362.0,0.06206677]
[1727063946017,0.077673,64369.0,64362.0,0.06206677]
[1727063946018,0.07768,64363.0,64362.0,0.06206677]
[1727063946221,0.07768,64363.0,64358.0,0.15526719]
[1727063946420,0.07768,64363.0,64359.0,0.12616102]
[1727063946618,0.07768,64363.0,64360.0,0.07758119]
[1727063946810,0.07768,64363.0,64359.0,0.07758119]
[1727063947116,0.07768,64363.0,64360.0,0.07758119]
[1727063947309,0.07768,64363.0,64359.0,0.07758119]
[1727063947507,0.077682,64362.0,64359.0,0.07758119]
[1727063947723,0.077682,64362.0,64360.0,0.07758119]
[1727063948020,0.077682,64362.0,64361.0,0.001]
[1727063948225,0.077682,64362.0,64361.0,0.3576]
[1727063948820,0.077682,64362.0,64361.0,0.39546332]
[1727063949212,0.077682,64362.0,64361.0,0.3566]
[1727063949417,0.079682,64362.0,64361.0,0.21476331]
[1727063950820,0.081682,64362.0,64361.0,0.23905308]
[1727063952215,0.081682,64362.0,64361.0,0.1759]
[1727063952418,0.081682,64362.0,64361.0,0.2390534]
[1727063952723,0.004,64362.0,64361.0,0.3167354]
[1727063953824,0.004,64362.0,64361.0,0.39740541]
[1727063955021,0.004,64362.0,64361.0,0.39732807]
[1727063955523,0.004,64362.0,64361.0,0.3973254]
[1727063956526,0.004,64362.0,64361.0,0.49022261]
[1727063957021,0.004,64362.0,64361.0,0.45136062]
[1727063957521,0.004,64362.0,64361.0,0.49022199]
[1727063957925,0.077673,64370.0,64361.0,1.38576278]
[1727063958123,0.077673,64370.0,64368.0,0.3608]
[1727063958324,0.5364,64377.0,64369.0,0.10488141]
[1727063958527,0.077669,64372.0,64371.0,0.07767]
[1727063958946,0.077669,64372.0,64368.0,0.3608]
[1727063958947,0.10285258,64372.0,64368.0,0.3608]
[1727063959131,0.002,64370.0,64368.0,0.3608]
[1727063959426,0.02718358,64370.0,64368.0,0.438473]
[1727063959632,0.02518363,64369.0,64368.0,0.438473]
[1727063960516,0.02518363,64369.0,64368.0,0.46276044]
[1727063960720,0.02518363,64371.0,64369.0,0.077673]
[1727063960921,0.083673,64369.0,64368.0,0.3618]
[1727063961121,0.10885648,64369.0,64368.0,0.38608729]
[1727063962131,0.10885648,64369.0,64368.0,0.38708729]
[1727063962732,0.10885648,64369.0,64368.0,0.02628729]
[1727063963041,0.10885648,64369.0,64368.0,0.002]
[1727063964433,0.10885764,64369.0,64368.0,0.002]
[1727063966330,0.10885764,64369.0,64368.0,0.3628]
[1727063966630,0.03118464,64369.0,64368.0,0.440474]
[1727063966835,0.006,64369.0,64368.0,0.50362104]
[1727063967021,0.006,64369.0,64368.0,0.58302129]
[1727063968522,0.006,64369.0,64368.0,0.58301974]
[1727063968924,0.006,64369.0,64368.0,0.51983844]
[1727063969131,0.006,64369.0,64368.0,0.58298375]
[1727063969326,0.006,64369.0,64368.0,0.56841175]
[1727063969634,0.006,64369.0,64368.0,0.54412509]
[1727063970930,0.077661,64379.0,64377.0,0.077662]
[1727063971133,0.077661,64379.0,64376.0,0.3608]
[1727063971332,0.251256,64383.0,64376.0,0.43822486]
[1727063971531,0.251256,64383.0,64381.0,0.06191559]
[1727063971829,0.251256,64383.0,64382.0,0.06191559]
[1727063972533,0.251256,64383.0,64380.0,0.077659]
[1727063972534,0.077657,64382.0,64380.0,0.077659]
[1727063972737,0.3616,64388.0,64381.0,0.077658]
[1727063972931,0.3616,64388.0,64379.0,0.13]
[1727063972932,0.077654,64385.0,64382.0,0.077657]
[1727063973232,0.077654,64385.0,64383.0,0.438456]
[1727063973434,0.077654,64385.0,64383.0,0.51588086]
[1727063973638,0.077654,64385.0,64383.0,0.438456]
[1727063974832,0.077654,64385.0,64383.0,0.439456]
[1727063975235,0.001,64385.0,64384.0,0.077655]
[1727063976028,0.001,64385.0,64384.0,0.33039213]
[1727063976228,0.001,64385.0,64384.0,0.35467277]
[1727063976436,0.001,64385.0,64384.0,0.33039213]
[1727063976641,0.001,64385.0,64384.0,0.52917189]
[1727063976830,0.13,64401.0,64384.0,1.51747689]
[1727063976831,0.077635,64401.0,64384.0,1.51747689]
[1727063977027,0.077639,64397.0,64395.0,0.13]
[1727063977224,0.077639,64397.0,64395.0,0.06179573]
[1727063977435,0.077639,64397.0,64394.0,0.06179573]
[1727063978226,0.078639,64397.0,64394.0,0.06179573]
[1727063978433,0.078639,64397.0,64393.0,0.13943973]
[1727063979141,0.078639,64397.0,64394.0,0.06179573]
[1727063979435,0.078639,64397.0,64393.0,0.13943973]
[1727063980335,0.078639,64397.0,64396.0,0.3608]
[1727063980540,0.077639,64397.0,64396.0,0.3608]
[1727063981538,0.077639,64397.0,64396.0,0.3618]
[1727063982243,0.077639,64397.0,64396.0,0.3628]
[1727063982636,0.10281238,64397.0,64396.0,0.3628]
[1727063983542,0.077639,64397.0,64396.0,0.002]
[1727063983742,0.10281238,64397.0,64396.0,0.3628]
[1727063984041,0.077639,64397.0,64396.0,0.002]
[1727063984236,0.077639,64397.0,64390.0,0.3608]
[1727063984237,0.077646,64391.0,64390.0,0.3608]
[1727063984640,0.077658,64382.0,64380.0,0.3624]
[1727063984940,0.077658,64382.0,64380.0,0.3608]
[1727063985243,0.077658,64382.0,64380.0,0.36557633]
[1727063985645,0.077658,64382.0,64380.0,0.3608]
[1727063986945,0.077658,64382.0,64380.0,0.3708]
[1727063987337,0.077658,64382.0,64380.0,0.3608]
[1727063987833,0.077658,64382.0,64380.0,0.438459]
[1727063988033,0.077653,64386.0,64380.0,0.3698]
[1727063988334,0.077654,64385.0,64381.0,0.077658]
[1727063988855,0.001,64382.0,64381.0,0.077658]
[1727063989034,0.001,64382.0,64381.0,0.13945373]
[1727063989431,0.077654,64385.0,64381.0,0.13945373]
[1727063990147,0.077654,64385.0,64381.0,0.14045373]
[1727063992556,0.077654,64385.0,64382.0,0.06179573]
[1727063994441,0.078654,64385.0,64382.0,0.06179573]
[1727063994643,0.078654,64385.0,64383.0,0.06179573]
[1727063995447,0.078654,64385.0,64384.0,0.06179573]
[1727063996446,0.079654,64385.0,64381.0,0.077658]
[1727063996951,0.002,64385.0,64384.0,0.077655]
[1727063997147,0.002,64385.0,64384.0,0.10193656]
[1727063997342,0.001,64385.0,64384.0,0.1637643]
[1727063997651,0.001,64385.0,64384.0,0.10193656]
[1727063997958,0.001,64385.0,64384.0,0.16378474]
[1727063998447,0.077652,64387.0,64384.0,0.10293656]
[1727063998645,0.077652,64387.0,64384.0,0.14051996]
[1727063999443,0.001,64385.0,64384.0,0.14051996]
[1727063999949,0.001,64385.0,64384.0,0.078655]
[1727064000135,0.077652,64387.0,64384.0,0.077655]
[1727064000339,0.077652,64387.0,64385.0,0.06190345]
[1727064000557,0.1748,64398.0,64386.0,0.3608]
[1727064000752,0.1748,64398.0,64388.0,0.06191539]
[1727064000937,0.077649,64389.0,64388.0,0.06191539]
[1727064001250,0.077649,64389.0,64388.0,0.0618976]
[1727064001452,0.077643,64394.0,64392.0,0.077645]
[1727064001749,0.077639,64397.0,64395.0,0.07764]
[1727064002049,0.001,64398.0,64393.0,0.36365213]
[1727064002248,0.001,64398.0,64397.0,0.077639]
[1727064003150,0.0036,64410.0,64397.0,0.2572062]
[1727064003344,0.13,64414.0,64405.0,0.3608]
[1727064003544,0.077625,64409.0,64405.0,0.3608]
[1727064003851,0.077625,64409.0,64396.0,0.0036]
[1727064003852,0.4908,64406.0,64399.0,0.06190419]
[1727064004165,0.077635,64400.0,64395.0,0.3101164]
[1727064004350,0.077635,64400.0,64399.0,0.06188165]
[1727064004653,0.077635,64400.0,64395.0,0.07724467]
[1727064005036,0.5104,64405.0,64395.0,0.07724467]
[1727064005247,0.5104,64405.0,64392.0,0.4908]
[1727064005248,0.077641,64395.0,64392.0,0.07724467]
[1727064005546,0.077641,64395.0,64391.0,0.06190517]
[1727064006046,0.077641,64395.0,64388.0,0.07724467]
[1727064006047,0.077647,64391.0,64388.0,0.07724467]
[1727064006351,0.077649,64389.0,64388.0,0.07724467]
[1727064006540,0.077649,64389.0,64388.0,0.15854058]
[1727064006742,0.077643,64394.0,64388.0,0.18296652]
[1727064007056,0.077643,64394.0,64388.0,0.07738995]
[1727064007256,0.3608,64398.0,64388.0,0.07738995]
[1727064007257,0.077644,64393.0,64388.0,0.08838995]
[1727064007643,0.13,64402.0,64390.0,0.077647]
[1727064007844,0.077638,64398.0,64397.0,0.06189273]
[1727064008647,0.58891,64405.0,64397.0,0.0618771]
[1727064008648,0.077633,64403.0,64397.0,0.0618771]
[1727064008848,0.077633,64403.0,64395.0,0.207641]
[1727064008849,0.5112,64405.0,64401.0,0.046407]
[1727064009038,0.5112,64405.0,64402.0,0.04639657]
[1727064009039,0.207632,64403.0,64402.0,0.04639657]
[1727064009744,0.077634,64401.0,64398.0,0.0618771]